[Event "Titled Tuesday Blitz November 01 Early 2022"]
[White "Korelskiy, Egor"]
[Black "Vovk, Orest"]
[WhiteFideId "34329064"]
[BlackFideId "14113490"]
[WhiteElo "2053"]
[BlackElo "2215"]
[Result "0-1"]
[Round "10"]
[TimeControl "180+1"]
[Date "2022.11.02"]
[WhiteClock "0:00:02"]
[BlackClock "0:00:05"]

1. e4 {[%clk 0:03:00]}  g5 {[%clk 0:02:57]} 2. d4 {[%clk 0:03:00]}  g4 {[%clk 0:02:55]} 3. Nc3 {[%clk 0:02:58]}  Bg7 {[%clk 0:02:55]} 4. Be3 {[%clk 0:02:57]}  h5 {[%clk 0:02:53]} 5. Nge2 {[%clk 0:02:53]}  d6 {[%clk 0:02:52]} 6. Qd2 {[%clk 0:02:50]}  c6 {[%clk 0:02:52]} 7. a4 {[%clk 0:02:49]}  Qa5 {[%clk 0:02:45]} 8. h3 {[%clk 0:02:44]}  Nd7 {[%clk 0:02:31]} 9. hxg4 {[%clk 0:02:42]}  hxg4 {[%clk 0:02:31]} 10. Rxh8 {[%clk 0:02:41]}  Bxh8 {[%clk 0:02:32]} 11. Nc1 {[%clk 0:02:20]}  Qh5 {[%clk 0:02:23]} 12. Nb3 {[%clk 0:02:17]}  g3 {[%clk 0:02:20]} 13. f3 {[%clk 0:02:07]}  a6 {[%clk 0:02:15]} 14. a5 {[%clk 0:01:38]}  b5 {[%clk 0:02:13]} 15. axb6 {[%clk 0:01:38]}  Nxb6 {[%clk 0:02:13]} 16. Na4 {[%clk 0:01:29]}  Nxa4 {[%clk 0:02:12]} 17. Rxa4 {[%clk 0:01:28]}  Nf6 {[%clk 0:02:10]} 18. Qc3 {[%clk 0:01:24]}  Bd7 {[%clk 0:01:59]} 19. Rxa6 {[%clk 0:01:23]}  Rxa6 {[%clk 0:01:58]} 20. Bxa6 {[%clk 0:01:22]}  Qh1+ {[%clk 0:01:59]} 21. Bf1 {[%clk 0:01:22]}  c5 {[%clk 0:01:58]} 22. Qa5 {[%clk 0:01:16]}  Kf8 {[%clk 0:01:49]} 23. dxc5 {[%clk 0:01:04]}  dxc5 {[%clk 0:01:35]} 24. Bxc5 {[%clk 0:01:02]}  Bh3 {[%clk 0:01:23]} 25. Qd8+ {[%clk 0:00:45]}  Kg7 {[%clk 0:01:22]} 26. Qd2 {[%clk 0:00:43]}  Be6 {[%clk 0:01:00]} 27. Bxe7 {[%clk 0:00:38]}  Bc4 {[%clk 0:00:53]} 28. Bxf6+ {[%clk 0:00:32]}  Kh7 {[%clk 0:00:48]} 29. Qg5 {[%clk 0:00:23]}  Qxf1+ {[%clk 0:00:45]} 30. Kd2 {[%clk 0:00:23]}  Qxg2+ {[%clk 0:00:39]} 31. Kc3 {[%clk 0:00:20]}  Qxf3+ {[%clk 0:00:38]} 32. Kxc4 {[%clk 0:00:21]}  Bxf6 {[%clk 0:00:38]} 33. Qd5 {[%clk 0:00:19]}  Bxb2 {[%clk 0:00:33]} 34. Nd2 {[%clk 0:00:15]}  Qc3+ {[%clk 0:00:20]} 35. Kb5 {[%clk 0:00:14]}  Qe5 {[%clk 0:00:18]} 36. Nf3 {[%clk 0:00:08]}  Qb8+ {[%clk 0:00:05]} 37. Kc4 {[%clk 0:00:07]}  Qf4 {[%clk 0:00:04]} 38. Ng5+ {[%clk 0:00:04]}  Kg6 {[%clk 0:00:04]} 39. Nh3 {[%clk 0:00:03]}  Qf1+ {[%clk 0:00:04]} 40. Kb3 {[%clk 0:00:03]}  Qxh3 {[%clk 0:00:05]} 41. Kxb2 {[%clk 0:00:03]}  Qe6 {[%clk 0:00:05]} 42. Qd3 {[%clk 0:00:02]}  Qe5+ {[%clk 0:00:05]} 43. c3 {[%clk 0:00:02]}  Kg5 {[%clk 0:00:06]} 44. Qe3+ {[%clk 0:00:02]}  Kg4 {[%clk 0:00:06]} 45. Qe2+ {[%clk 0:00:03]}  Kh3 {[%clk 0:00:05]} 46. Qf1+ {[%clk 0:00:02]}  Kh2 {[%clk 0:00:05]} 47. Qe2+ {[%clk 0:00:02]}  g2 {[%clk 0:00:05]} 48. Qf2 {[%clk 0:00:02]}  Qg5 {[%clk 0:00:03]} 49. Kb3 {[%clk 0:00:02]}  Kh1 {[%clk 0:00:04]} 50. Qf3 {[%clk 0:00:01]}  Qb5+ {[%clk 0:00:04]} 51. Kc2 {[%clk 0:00:01]}  Qf1 {[%clk 0:00:04]} 52. Qh3+ {[%clk 0:00:01]}  Kg1 {[%clk 0:00:05]} 53. Kb3 {[%clk 0:00:01]}  Qb1+ {[%clk 0:00:04]} 54. Kc4 {[%clk 0:00:01]}  Qxe4+ {[%clk 0:00:05]} 55. Kb3 {[%clk 0:00:02]}  Qb1+ {[%clk 0:00:04]} 56. Kc4 {[%clk 0:00:02]}  Qe1 {[%clk 0:00:05]} 57. Qg4 {[%clk 0:00:02]}  Kf1 {[%clk 0:00:05]} 58. Qf3+ {[%clk 0:00:01]}  Kg1 {[%clk 0:00:05]} 59. Qg4 {[%clk 0:00:01]}  Qf1+ {[%clk 0:00:05]} 60. Kb3 {[%clk 0:00:01]}  f5 {[%clk 0:00:05]} 61. Qg5 {[%clk 0:00:01]}  f4 {[%clk 0:00:05]} 62. Qc5+ {[%clk 0:00:01]}  Qf2 {[%clk 0:00:05]} 63. Qg5 {[%clk 0:00:02]}  f3 {[%clk 0:00:05]} 64. Qc1+ {[%clk 0:00:02]}  Qf1 {[%clk 0:00:05]} 65. Qe3+ {[%clk 0:00:02]}  f2 {[%clk 0:00:04]} 66. Qg3 {[%clk 0:00:03]}  Qb1+ {[%clk 0:00:04]} 67. Kc4 {[%clk 0:00:03]}  Qe1 {[%clk 0:00:05]} 68. Kb3 {[%clk 0:00:02]}  f1=Q {[%clk 0:00:05]} 0-1


[Site "https://www.chess.com"]

[Event "Titled Tuesday Blitz November 01 Early 2022"]
[White "Lauridsen, Jesper Morch"]
[Black "Khamdamova, Afruza"]
[WhiteFideId "1401890"]
[BlackFideId "14210444"]
[WhiteElo "2278"]
[BlackElo "2018"]
[Result "1/2-1/2"]
[Round "10"]
[TimeControl "180+1"]
[Date "2022.11.02"]
[WhiteClock "0:00:25"]
[BlackClock "0:00:09"]

1. e4 {[%clk 0:03:00]}  e5 {[%clk 0:02:59]} 2. Nf3 {[%clk 0:02:59]}  Nf6 {[%clk 0:02:59]} 3. d4 {[%clk 0:02:57]}  Nxe4 {[%clk 0:02:58]} 4. dxe5 {[%clk 0:02:56]}  d5 {[%clk 0:02:57]} 5. Nbd2 {[%clk 0:02:56]}  Nc5 {[%clk 0:02:52]} 6. Nb3 {[%clk 0:02:55]}  Nc6 {[%clk 0:02:51]} 7. Bg5 {[%clk 0:02:52]}  Qd7 {[%clk 0:02:38]} 8. Bb5 {[%clk 0:02:49]}  Nxb3 {[%clk 0:02:28]} 9. axb3 {[%clk 0:02:46]}  Be7 {[%clk 0:02:23]} 10. Bxe7 {[%clk 0:02:40]}  Qxe7 {[%clk 0:02:22]} 11. Qxd5 {[%clk 0:02:36]}  O-O {[%clk 0:02:16]} 12. Bxc6 {[%clk 0:02:36]}  bxc6 {[%clk 0:02:14]} 13. Qxc6 {[%clk 0:02:32]}  Bg4 {[%clk 0:02:13]} 14. Qe4 {[%clk 0:02:22]}  Bxf3 {[%clk 0:01:54]} 15. gxf3 {[%clk 0:02:21]}  f6 {[%clk 0:01:44]} 16. exf6 {[%clk 0:02:08]}  Qxf6 {[%clk 0:01:42]} 17. O-O-O {[%clk 0:01:55]}  Qxf3 {[%clk 0:01:40]} 18. Qxf3 {[%clk 0:01:54]}  Rxf3 {[%clk 0:01:40]} 19. Rd7 {[%clk 0:01:46]}  Rxf2 {[%clk 0:01:18]} 20. Rxc7 {[%clk 0:01:38]}  a5 {[%clk 0:01:16]} 21. Rg1 {[%clk 0:01:36]}  g6 {[%clk 0:01:15]} 22. Re1 {[%clk 0:01:35]}  Rxh2 {[%clk 0:01:12]} 23. Ree7 {[%clk 0:01:32]}  Kh8 {[%clk 0:01:04]} 24. Ra7 {[%clk 0:01:28]}  Rf8 {[%clk 0:01:03]} 25. Kb1 {[%clk 0:01:19]}  Rh5 {[%clk 0:01:00]} 26. Ka2 {[%clk 0:01:15]}  Rg8 {[%clk 0:00:51]} 27. c4 {[%clk 0:01:13]}  Rb8 {[%clk 0:00:49]} 28. c5 {[%clk 0:01:12]}  Rxc5 {[%clk 0:00:43]} 29. Rxh7+ {[%clk 0:01:11]}  Kg8 {[%clk 0:00:43]} 30. Rag7+ {[%clk 0:01:10]}  Kf8 {[%clk 0:00:43]} 31. Rxg6 {[%clk 0:01:10]}  Rcb5 {[%clk 0:00:39]} 32. Rh8+ {[%clk 0:01:05]}  Kf7 {[%clk 0:00:39]} 33. Rxb8 {[%clk 0:01:04]}  Rxb8 {[%clk 0:00:39]} 34. Rg5 {[%clk 0:00:56]}  Ke6 {[%clk 0:00:33]} 35. Rxa5 {[%clk 0:00:54]}  Kd6 {[%clk 0:00:33]} 36. Ka3 {[%clk 0:00:52]}  Kc6 {[%clk 0:00:33]} 37. b4 {[%clk 0:00:52]}  Kb6 {[%clk 0:00:33]} 38. Rg5 {[%clk 0:00:49]}  Ra8+ {[%clk 0:00:31]} 39. Kb3 {[%clk 0:00:49]}  Rf8 {[%clk 0:00:30]} 40. Rg3 {[%clk 0:00:46]}  Rf6 {[%clk 0:00:28]} 41. Rg4 {[%clk 0:00:46]}  Rh6 {[%clk 0:00:26]} 42. Kc4 {[%clk 0:00:45]}  Rc6+ {[%clk 0:00:26]} 43. Kd4 {[%clk 0:00:44]}  Kb5 {[%clk 0:00:25]} 44. Kd5 {[%clk 0:00:42]}  Rc2 {[%clk 0:00:24]} 45. Rg8 {[%clk 0:00:35]}  Kxb4 {[%clk 0:00:22]} 46. Rb8+ {[%clk 0:00:34]}  Ka4 {[%clk 0:00:19]} 47. b4 {[%clk 0:00:33]}  Rc1 {[%clk 0:00:16]} 48. b5 {[%clk 0:00:31]}  Ka5 {[%clk 0:00:16]} 49. b6 {[%clk 0:00:31]}  Ka6 {[%clk 0:00:16]} 50. Kd6 {[%clk 0:00:31]}  Rd1+ {[%clk 0:00:12]} 51. Kc7 {[%clk 0:00:29]}  Rc1+ {[%clk 0:00:09]} 52. Kd7 {[%clk 0:00:29]}  Rd1+ {[%clk 0:00:09]} 53. Kc6 {[%clk 0:00:27]}  Rc1+ {[%clk 0:00:09]} 54. Kd5 {[%clk 0:00:27]}  Rd1+ {[%clk 0:00:10]} 55. Kc4 {[%clk 0:00:27]}  Rc1+ {[%clk 0:00:09]} 56. Kd4 {[%clk 0:00:26]}  Rd1+ {[%clk 0:00:09]} 57. Kc3 {[%clk 0:00:26]}  Rc1+ {[%clk 0:00:10]} 58. Kb4 {[%clk 0:00:26]}  Rb1+ {[%clk 0:00:10]} 59. Kc5 {[%clk 0:00:25]}  Rc1+ {[%clk 0:00:10]} 60. Kb4 {[%clk 0:00:25]}  Rb1+ {[%clk 0:00:10]} 61. Ka3 {[%clk 0:00:25]}  Rxb6 {[%clk 0:00:09]} 62. Rxb6+ {[%clk 0:00:25]}  Kxb6 {[%clk 0:00:09]} 1/2-1/2


[Site "https://www.chess.com"]

[Event "Titled Tuesday Blitz November 01 Early 2022"]
[White "Lazavik, Denis"]
[Black "Azarov, Sergei"]
[WhiteFideId "13515110"]
[BlackFideId "13501470"]
[WhiteElo "2437"]
[BlackElo "2494"]
[Result "1-0"]
[Round "10"]
[TimeControl "180+1"]
[Date "2022.11.01"]
[WhiteClock "0:00:39"]
[BlackClock "0:00:01"]

1. d4 {[%clk 0:03:00]}  Nf6 {[%clk 0:02:49]} 2. c4 {[%clk 0:03:01]}  e6 {[%clk 0:02:48]} 3. Nc3 {[%clk 0:03:01]}  Bb4 {[%clk 0:02:47]} 4. e3 {[%clk 0:03:01]}  O-O {[%clk 0:02:47]} 5. Bd3 {[%clk 0:03:02]}  d5 {[%clk 0:02:46]} 6. cxd5 {[%clk 0:03:02]}  exd5 {[%clk 0:02:46]} 7. a3 {[%clk 0:03:02]}  Bd6 {[%clk 0:02:43]} 8. Qc2 {[%clk 0:03:02]}  c6 {[%clk 0:02:41]} 9. Nge2 {[%clk 0:03:02]}  a5 {[%clk 0:02:41]} 10. O-O {[%clk 0:02:58]}  Nbd7 {[%clk 0:02:32]} 11. Bd2 {[%clk 0:02:54]}  Re8 {[%clk 0:02:31]} 12. f3 {[%clk 0:02:54]}  Nf8 {[%clk 0:02:28]} 13. e4 {[%clk 0:02:50]}  dxe4 {[%clk 0:01:52]} 14. fxe4 {[%clk 0:02:51]}  c5 {[%clk 0:01:53]} 15. e5 {[%clk 0:02:33]}  cxd4 {[%clk 0:01:53]} 16. exf6 {[%clk 0:02:29]}  dxc3 {[%clk 0:01:49]} 17. fxg7 {[%clk 0:02:03]}  Ng6 {[%clk 0:01:46]} 18. Bxc3 {[%clk 0:01:58]}  Qh4 {[%clk 0:01:01]} 19. g3 {[%clk 0:01:51]}  Qh5 {[%clk 0:00:38]} 20. Bd4 {[%clk 0:01:41]}  Bg4 {[%clk 0:00:36]} 21. Nc3 {[%clk 0:01:39]}  Bc5 {[%clk 0:00:24]} 22. Qf2 {[%clk 0:01:15]}  Bxd4 {[%clk 0:00:19]} 23. Qxd4 {[%clk 0:01:16]}  Ne5 {[%clk 0:00:18]} 24. Be4 {[%clk 0:01:11]}  Kxg7 {[%clk 0:00:11]} 25. Nd5 {[%clk 0:01:09]}  Rad8 {[%clk 0:00:08]} 26. Qc3 {[%clk 0:01:07]}  f5 {[%clk 0:00:05]} 27. Bg2 {[%clk 0:01:04]}  Qf7 {[%clk 0:00:04]} 28. Ne3 {[%clk 0:01:01]}  Kg8 {[%clk 0:00:02]} 29. Rae1 {[%clk 0:00:58]}  Rd3 {[%clk 0:00:03]} 30. Qxa5 {[%clk 0:00:47]}  Qg7 {[%clk 0:00:01]} 31. Qb5 {[%clk 0:00:39]} 1-0


[Site "https://www.chess.com"]

[Event "Titled Tuesday Blitz November 01 Early 2022"]
[White "Le, Tuan Minh"]
[Black "Gokerkan, Cem Kaan"]
[WhiteFideId "12401153"]
[BlackFideId "6336760"]
[WhiteElo "2530"]
[BlackElo "2365"]
[Result "1-0"]
[Round "10"]
[TimeControl "180+1"]
[Date "2022.11.01"]
[WhiteClock "0:01:15"]
[BlackClock "0:00:07"]

1. d4 {[%clk 0:03:00]}  Nf6 {[%clk 0:03:00]} 2. Nf3 {[%clk 0:03:01]}  d5 {[%clk 0:03:00]} 3. Bf4 {[%clk 0:03:01]}  c5 {[%clk 0:03:00]} 4. c3 {[%clk 0:03:01]}  e6 {[%clk 0:02:54]} 5. e3 {[%clk 0:03:01]}  Bd6 {[%clk 0:02:54]} 6. Nbd2 {[%clk 0:03:01]}  Qc7 {[%clk 0:02:54]} 7. Bxd6 {[%clk 0:03:01]}  Qxd6 {[%clk 0:02:55]} 8. Ne5 {[%clk 0:03:02]}  Nfd7 {[%clk 0:02:48]} 9. f4 {[%clk 0:03:02]}  b6 {[%clk 0:02:39]} 10. Qh5 {[%clk 0:02:49]}  g6 {[%clk 0:02:30]} 11. Qh4 {[%clk 0:02:45]}  Qe7 {[%clk 0:02:18]} 12. Qh6 {[%clk 0:02:45]}  Qf8 {[%clk 0:02:16]} 13. Qh3 {[%clk 0:02:44]}  Ba6 {[%clk 0:02:07]} 14. Bxa6 {[%clk 0:02:41]}  Nxa6 {[%clk 0:02:07]} 15. O-O {[%clk 0:02:37]}  Nc7 {[%clk 0:01:59]} 16. Ndf3 {[%clk 0:02:32]}  f6 {[%clk 0:01:39]} 17. Nxd7 {[%clk 0:02:25]}  Kxd7 {[%clk 0:01:40]} 18. Rae1 {[%clk 0:02:26]}  Qd6 {[%clk 0:01:11]} 19. e4 {[%clk 0:02:24]}  dxe4 {[%clk 0:01:05]} 20. Rxe4 {[%clk 0:02:25]}  Rae8 {[%clk 0:01:02]} 21. Rfe1 {[%clk 0:02:20]}  Kc8 {[%clk 0:00:59]} 22. dxc5 {[%clk 0:02:10]}  Qxc5+ {[%clk 0:01:00]} 23. Kh1 {[%clk 0:02:10]}  Kb8 {[%clk 0:01:00]} 24. Nd4 {[%clk 0:02:09]}  e5 {[%clk 0:00:57]} 25. fxe5 {[%clk 0:02:08]}  Rxe5 {[%clk 0:00:55]} 26. Rxe5 {[%clk 0:02:08]}  fxe5 {[%clk 0:00:56]} 27. Rxe5 {[%clk 0:02:08]}  Qc4 {[%clk 0:00:48]} 28. Qf3 {[%clk 0:02:06]}  Rd8 {[%clk 0:00:33]} 29. h3 {[%clk 0:02:02]}  Rd5 {[%clk 0:00:33]} 30. Re7 {[%clk 0:01:53]}  Rc5 {[%clk 0:00:14]} 31. a3 {[%clk 0:01:32]}  Qd5 {[%clk 0:00:14]} 32. Qf8+ {[%clk 0:01:29]}  Kb7 {[%clk 0:00:14]} 33. Rxh7 {[%clk 0:01:24]}  Qe4 {[%clk 0:00:13]} 34. Re7 {[%clk 0:01:17]}  Qb1+ {[%clk 0:00:12]} 35. Kh2 {[%clk 0:01:17]}  Qc1 {[%clk 0:00:10]} 36. Qf3+ {[%clk 0:01:14]}  Ka6 {[%clk 0:00:09]} 37. Nb3 {[%clk 0:01:15]}  Rc4 {[%clk 0:00:07]} 38. Nxc1 {[%clk 0:01:15]} 1-0


[Site "https://www.chess.com"]

[Event "Titled Tuesday Blitz November 01 Early 2022"]
[White "Ljukin, Sergei"]
[Black "Migot, Tangi"]
[WhiteFideId "14102200"]
[BlackFideId "662445"]
[WhiteElo "2312"]
[BlackElo "2591"]
[Result "1-0"]
[Round "10"]
[TimeControl "180+1"]
[Date "2022.11.02"]
[WhiteClock "0:00:07"]
[BlackClock "0:00:18"]

1. e4 {[%clk 0:02:56]}  e6 {[%clk 0:03:00]} 2. d4 {[%clk 0:02:54]}  b6 {[%clk 0:03:00]} 3. Nf3 {[%clk 0:02:53]}  Bb7 {[%clk 0:03:01]} 4. Bd3 {[%clk 0:02:54]}  Nf6 {[%clk 0:02:59]} 5. Qe2 {[%clk 0:02:53]}  d5 {[%clk 0:02:59]} 6. e5 {[%clk 0:02:53]}  Ne4 {[%clk 0:02:59]} 7. Nbd2 {[%clk 0:02:54]}  Nxd2 {[%clk 0:02:58]} 8. Bxd2 {[%clk 0:02:54]}  c5 {[%clk 0:02:58]} 9. c3 {[%clk 0:02:54]}  a5 {[%clk 0:02:57]} 10. O-O {[%clk 0:02:50]}  Ba6 {[%clk 0:02:56]} 11. Bb5+ {[%clk 0:02:28]}  Bxb5 {[%clk 0:02:53]} 12. Qxb5+ {[%clk 0:02:28]}  Qd7 {[%clk 0:02:47]} 13. Qxb6 {[%clk 0:02:12]}  Be7 {[%clk 0:02:39]} 14. Qb3 {[%clk 0:01:58]}  O-O {[%clk 0:02:36]} 15. Qc2 {[%clk 0:01:57]}  Nc6 {[%clk 0:02:32]} 16. Qd3 {[%clk 0:01:48]}  Rfb8 {[%clk 0:02:26]} 17. b3 {[%clk 0:01:26]}  a4 {[%clk 0:02:26]} 18. dxc5 {[%clk 0:01:23]}  axb3 {[%clk 0:02:15]} 19. axb3 {[%clk 0:01:22]}  Rxa1 {[%clk 0:02:16]} 20. Rxa1 {[%clk 0:01:21]}  Rxb3 {[%clk 0:02:17]} 21. Ra8+ {[%clk 0:01:20]}  Rb8 {[%clk 0:02:17]} 22. Rxb8+ {[%clk 0:01:19]}  Nxb8 {[%clk 0:02:17]} 23. Be3 {[%clk 0:01:11]}  Qa4 {[%clk 0:02:11]} 24. h3 {[%clk 0:01:00]}  Nd7 {[%clk 0:02:01]} 25. Qb1 {[%clk 0:01:00]}  Qc6 {[%clk 0:01:49]} 26. Nd4 {[%clk 0:00:59]}  Qxc5 {[%clk 0:01:29]} 27. Nf5 {[%clk 0:00:52]}  Qa3 {[%clk 0:01:25]} 28. Qb7 {[%clk 0:00:39]}  exf5 {[%clk 0:01:22]} 29. Qxd7 {[%clk 0:00:38]}  Bf8 {[%clk 0:01:07]} 30. Bd4 {[%clk 0:00:25]}  Qc1+ {[%clk 0:00:56]} 31. Kh2 {[%clk 0:00:23]}  Qf4+ {[%clk 0:00:56]} 32. g3 {[%clk 0:00:24]}  Qe4 {[%clk 0:00:47]} 33. Qe8 {[%clk 0:00:20]}  f4 {[%clk 0:00:39]} 34. Bc5 {[%clk 0:00:11]}  fxg3+ {[%clk 0:00:36]} 35. Kxg3 {[%clk 0:00:11]}  Qg6+ {[%clk 0:00:20]} 36. Kh2 {[%clk 0:00:11]}  h5 {[%clk 0:00:19]} 37. Qxf8+ {[%clk 0:00:11]}  Kh7 {[%clk 0:00:19]} 38. Qe7 {[%clk 0:00:10]}  Qf5 {[%clk 0:00:18]} 39. Qh4 {[%clk 0:00:09]}  Kh6 {[%clk 0:00:17]} 40. Be3+ {[%clk 0:00:08]}  g5 {[%clk 0:00:17]} 41. Qg3 {[%clk 0:00:06]}  Kg6 {[%clk 0:00:17]} 42. h4 {[%clk 0:00:06]}  g4 {[%clk 0:00:17]} 43. Qf4 {[%clk 0:00:07]}  Qc2 {[%clk 0:00:16]} 44. Qg5+ {[%clk 0:00:07]}  Kh7 {[%clk 0:00:17]} 45. Qxh5+ {[%clk 0:00:07]}  Kg8 {[%clk 0:00:17]} 46. Qxg4+ {[%clk 0:00:08]}  Kf8 {[%clk 0:00:18]} 47. Bd4 {[%clk 0:00:08]}  Ke8 {[%clk 0:00:18]} 48. Qg5 {[%clk 0:00:07]}  Kd7 {[%clk 0:00:17]} 49. Qf5+ {[%clk 0:00:07]}  Kc6 {[%clk 0:00:18]} 50. Qxc2 {[%clk 0:00:07]} 1-0


[Site "https://www.chess.com"]

[Event "Titled Tuesday Blitz November 01 Early 2022"]
[White "Luxama, Jacques Muller"]
[Black "Johnson, Ben"]
[WhiteFideId "11900113"]
[BlackFideId "2010917"]
[WhiteElo "1931"]
[BlackElo "2121"]
[Result "1-0"]
[Round "10"]
[TimeControl "180+1"]
[Date "2022.11.02"]
[WhiteClock "0:01:05"]
[BlackClock "0:00:27"]

1. d4 {[%clk 0:02:57]}  Nf6 {[%clk 0:02:58]} 2. c4 {[%clk 0:02:57]}  e6 {[%clk 0:02:58]} 3. Nc3 {[%clk 0:02:58]}  Bb4 {[%clk 0:02:58]} 4. e3 {[%clk 0:02:57]}  O-O {[%clk 0:02:57]} 5. Bd3 {[%clk 0:02:58]}  d5 {[%clk 0:02:56]} 6. Ne2 {[%clk 0:02:58]}  b6 {[%clk 0:02:53]} 7. cxd5 {[%clk 0:02:58]}  exd5 {[%clk 0:02:50]} 8. Bd2 {[%clk 0:02:58]}  Re8 {[%clk 0:02:39]} 9. Rc1 {[%clk 0:02:57]}  a6 {[%clk 0:02:36]} 10. O-O {[%clk 0:02:56]}  Bb7 {[%clk 0:02:26]} 11. Ng3 {[%clk 0:02:39]}  Bf8 {[%clk 0:02:17]} 12. Qf3 {[%clk 0:02:30]}  c5 {[%clk 0:02:08]} 13. Rfd1 {[%clk 0:02:23]}  c4 {[%clk 0:02:01]} 14. Bxc4 {[%clk 0:02:21]}  dxc4 {[%clk 0:01:48]} 15. Qxb7 {[%clk 0:02:20]}  Nbd7 {[%clk 0:01:47]} 16. e4 {[%clk 0:02:11]}  h6 {[%clk 0:00:51]} 17. e5 {[%clk 0:02:10]}  Nh7 {[%clk 0:00:51]} 18. Qf3 {[%clk 0:01:58]}  b5 {[%clk 0:00:49]} 19. Nf5 {[%clk 0:01:44]}  Ng5 {[%clk 0:00:46]} 20. Qg4 {[%clk 0:01:37]}  Nb6 {[%clk 0:00:39]} 21. h4 {[%clk 0:01:34]}  b4 {[%clk 0:00:31]} 22. hxg5 {[%clk 0:01:27]}  h5 {[%clk 0:00:31]} 23. Qxh5 {[%clk 0:01:20]}  bxc3 {[%clk 0:00:32]} 24. bxc3 {[%clk 0:01:15]}  Nd5 {[%clk 0:00:32]} 25. g6 {[%clk 0:01:07]}  Qd7 {[%clk 0:00:27]} 26. Qh7# {[%clk 0:01:05]} 1-0


[Site "https://www.chess.com"]

[Event "Titled Tuesday Blitz November 01 Early 2022"]
[White "Madaminov, Mukhiddin"]
[Black "Kodinets, Konstantin L."]
[WhiteFideId "14210703"]
[BlackFideId "4122011"]
[WhiteElo "2341"]
[BlackElo "2447"]
[Result "0-1"]
[Round "10"]
[TimeControl "180+1"]
[Date "2022.11.02"]
[WhiteClock "0:01:06"]
[BlackClock "0:01:09"]

1. d4 {[%clk 0:03:00]}  d6 {[%clk 0:02:59]} 2. Nc3 {[%clk 0:03:00]}  Nf6 {[%clk 0:02:59]} 3. e4 {[%clk 0:03:00]}  e5 {[%clk 0:02:59]} 4. dxe5 {[%clk 0:02:59]}  dxe5 {[%clk 0:03:00]} 5. Qxd8+ {[%clk 0:02:59]}  Kxd8 {[%clk 0:03:01]} 6. Bc4 {[%clk 0:02:59]}  Be6 {[%clk 0:03:01]} 7. Bxe6 {[%clk 0:02:59]}  fxe6 {[%clk 0:03:02]} 8. f3 {[%clk 0:02:57]}  Bb4 {[%clk 0:03:02]} 9. Ne2 {[%clk 0:02:57]}  Ke7 {[%clk 0:03:03]} 10. a3 {[%clk 0:02:56]}  Bd6 {[%clk 0:03:02]} 11. Nd1 {[%clk 0:02:55]}  Nc6 {[%clk 0:02:55]} 12. Be3 {[%clk 0:02:55]}  b5 {[%clk 0:02:53]} 13. Nc1 {[%clk 0:02:55]}  Nd4 {[%clk 0:02:51]} 14. Kd2 {[%clk 0:02:53]}  c5 {[%clk 0:02:50]} 15. c3 {[%clk 0:02:52]}  Nc6 {[%clk 0:02:50]} 16. Nd3 {[%clk 0:02:41]}  c4 {[%clk 0:02:35]} 17. Nb4 {[%clk 0:02:39]}  Na5 {[%clk 0:02:35]} 18. Kc2 {[%clk 0:02:38]}  Nb3 {[%clk 0:02:30]} 19. Rb1 {[%clk 0:02:38]}  a5 {[%clk 0:02:27]} 20. Na2 {[%clk 0:02:34]}  h6 {[%clk 0:02:14]} 21. Nf2 {[%clk 0:02:30]}  Bc5 {[%clk 0:02:11]} 22. Bxc5+ {[%clk 0:02:27]}  Nxc5 {[%clk 0:02:12]} 23. Rbd1 {[%clk 0:02:27]}  Rhd8 {[%clk 0:02:11]} 24. Nc1 {[%clk 0:02:24]}  g5 {[%clk 0:02:00]} 25. Ne2 {[%clk 0:02:22]}  h5 {[%clk 0:01:53]} 26. Ng3 {[%clk 0:02:02]}  h4 {[%clk 0:01:49]} 27. Ne2 {[%clk 0:01:57]}  g4 {[%clk 0:01:46]} 28. fxg4 {[%clk 0:01:53]}  Nfxe4 {[%clk 0:01:44]} 29. Nxe4 {[%clk 0:01:54]}  Nxe4 {[%clk 0:01:45]} 30. h3 {[%clk 0:01:52]}  Nf2 {[%clk 0:01:31]} 31. Rxd8 {[%clk 0:01:46]}  Rxd8 {[%clk 0:01:32]} 32. Rf1 {[%clk 0:01:46]}  Nd3 {[%clk 0:01:30]} 33. b3 {[%clk 0:01:29]}  Nc5 {[%clk 0:01:25]} 34. bxc4 {[%clk 0:01:19]}  bxc4 {[%clk 0:01:26]} 35. Re1 {[%clk 0:01:14]}  Rd3 {[%clk 0:01:19]} 36. Nc1 {[%clk 0:01:12]}  Rg3 {[%clk 0:01:19]} 37. Rxe5 {[%clk 0:01:12]}  Rxg2+ {[%clk 0:01:18]} 38. Kd1 {[%clk 0:01:11]}  Kd6 {[%clk 0:01:14]} 39. Re2 {[%clk 0:01:09]}  Rg3 {[%clk 0:01:13]} 40. Kd2 {[%clk 0:01:06]}  Rxh3 {[%clk 0:01:09]} 0-1


[Site "https://www.chess.com"]

[Event "Titled Tuesday Blitz November 01 Early 2022"]
[White "Mirzoev, Azer"]
[Black "Jean Louis, Marckens"]
[WhiteFideId "13400304"]
[BlackFideId "11900270"]
[WhiteElo "2525"]
[BlackElo "2030"]
[Result "1/2-1/2"]
[Round "10"]
[TimeControl "180+1"]
[Date "2022.11.02"]
[WhiteClock "0:00:34"]
[BlackClock "0:01:36"]

1. d4 {[%clk 0:02:59]}  e6 {[%clk 0:02:59]} 2. Nf3 {[%clk 0:02:58]}  d5 {[%clk 0:03:00]} 3. Bf4 {[%clk 0:02:58]}  Nf6 {[%clk 0:03:00]} 4. e3 {[%clk 0:02:58]}  Bd6 {[%clk 0:03:00]} 5. Bg3 {[%clk 0:02:58]}  O-O {[%clk 0:03:00]} 6. c4 {[%clk 0:02:57]}  Ne4 {[%clk 0:03:00]} 7. Nc3 {[%clk 0:02:56]}  c6 {[%clk 0:03:00]} 8. Qc2 {[%clk 0:02:55]}  f5 {[%clk 0:02:59]} 9. Bd3 {[%clk 0:02:51]}  Na6 {[%clk 0:02:56]} 10. a3 {[%clk 0:02:50]}  Nc7 {[%clk 0:02:56]} 11. Bxd6 {[%clk 0:02:48]}  Qxd6 {[%clk 0:02:55]} 12. O-O {[%clk 0:02:47]}  Ne8 {[%clk 0:02:51]} 13. Ne5 {[%clk 0:02:47]}  N8f6 {[%clk 0:02:50]} 14. f4 {[%clk 0:02:46]}  Nd7 {[%clk 0:02:48]} 15. Nxe4 {[%clk 0:02:40]}  fxe4 {[%clk 0:02:48]} 16. Be2 {[%clk 0:02:40]}  Nxe5 {[%clk 0:02:47]} 17. fxe5 {[%clk 0:02:41]}  Qe7 {[%clk 0:02:47]} 18. Rxf8+ {[%clk 0:02:36]}  Kxf8 {[%clk 0:02:48]} 19. b4 {[%clk 0:02:31]}  Bd7 {[%clk 0:02:45]} 20. cxd5 {[%clk 0:02:13]}  exd5 {[%clk 0:02:44]} 21. Rf1+ {[%clk 0:02:01]}  Kg8 {[%clk 0:02:43]} 22. Qc1 {[%clk 0:02:00]}  Be6 {[%clk 0:02:36]} 23. Qe1 {[%clk 0:01:52]}  a5 {[%clk 0:02:34]} 24. h4 {[%clk 0:01:38]}  axb4 {[%clk 0:02:31]} 25. axb4 {[%clk 0:01:39]}  Ra3 {[%clk 0:02:27]} 26. Qg3 {[%clk 0:01:04]}  Qxb4 {[%clk 0:02:26]} 27. Qg5 {[%clk 0:01:03]}  Ra8 {[%clk 0:02:21]} 28. h5 {[%clk 0:00:57]}  Rf8 {[%clk 0:02:16]} 29. h6 {[%clk 0:00:54]}  Rxf1+ {[%clk 0:02:15]} 30. Bxf1 {[%clk 0:00:54]}  Qf8 {[%clk 0:02:08]} 31. hxg7 {[%clk 0:00:53]}  Qxg7 {[%clk 0:02:02]} 32. Qd8+ {[%clk 0:00:53]}  Qf8 {[%clk 0:02:02]} 33. Qc7 {[%clk 0:00:51]}  Qf7 {[%clk 0:02:01]} 34. Qb8+ {[%clk 0:00:50]}  Kg7 {[%clk 0:02:01]} 35. Qd8 {[%clk 0:00:49]}  Qg6 {[%clk 0:01:59]} 36. Qc7+ {[%clk 0:00:46]}  Qf7 {[%clk 0:01:59]} 37. Qd6 {[%clk 0:00:46]}  Qd7 {[%clk 0:01:54]} 38. Qb8 {[%clk 0:00:45]}  Qc8 {[%clk 0:01:52]} 39. Qa7 {[%clk 0:00:45]}  Qd7 {[%clk 0:01:49]} 40. Qb8 {[%clk 0:00:37]}  Qf7 {[%clk 0:01:46]} 41. Qd8 {[%clk 0:00:34]}  Qg6 {[%clk 0:01:42]} 42. Qe7+ {[%clk 0:00:33]}  Qf7 {[%clk 0:01:36]} 43. Qg5+ {[%clk 0:00:33]}  Qg6 {[%clk 0:01:36]} 44. Qe7+ {[%clk 0:00:34]}  Qf7 {[%clk 0:01:36]} 45. Qg5+ {[%clk 0:00:34]}  Qg6 {[%clk 0:01:36]} 46. Qe7+ {[%clk 0:00:34]} 1/2-1/2


[Site "https://www.chess.com"]